Cogmind - Beta 13 @@@ ROGUE MODE // 2024.04.07 @ 09:43:35 Player: dohmmass Result: Destroyed by H-61 Shepherd with Heavy Assault Cannon Performance ------------- Evolutions (3) 1500 Regions Visited (6) 1200 Robots Destroyed (102) 510 Value Destroyed (2946) 2946 Prototype IDs (15) 300 Alien Tech Used (0) 0 Bonus (821) 821 TOTAL SCORE: 7277 Bonus ------- High Alert Combat Kills 373 Follower Combat Kills 130 Entered DSFs 500 Friendly Fire -182 Cogmind --------- Core Integrity 0/700 Matter 300/300 Energy 99/100 System Corruption 0% Temperature Cool (0) Movement Core (150) Ox2 Location -7/DSF Parts ------- > --- POWER (1) -------- (None) > --- PROPULSION (2) --- (None) > --- UTILITY (6) ------ Target Analyzer > --- WEAPON (4) ------- Axe Axe Spear > --- INVENTORY (5) ---- Target Analyzer Target Analyzer Spear Spear Peak State ------------ > --- POWER ------------ Nuclear Core > --- PROPULSION ------- Advanced Treads Advanced Treads > --- UTILITY ---------- High-capacity Matter Pod Target Analyzer Target Analyzer Target Analyzer Hardened Medium Armor Plating Improved Light Armor Plating > --- WEAPON ----------- Spear Spear Spear Spear > --- INVENTORY -------- Target Analyzer Target Analyzer Heavy Assault Rifle Improved Heavy Machine Gun [Rating: 42] Favorites ----------- Power Improved Ion Engine Engine Improved Ion Engine Power Core Nuclear Core Propulsion Wheel Treads Advanced Treads Leg Aluminum Leg Wheel Wheel Utility Improved Light Armor Plating Device Structural Scanner Storage Medium Storage Unit Processor Target Analyzer Hackware Hacking Suite Protection Improved Light Armor Plating Weapon Improved Assault Rifle Energy Gun EM Pulse Gun Ballistic Gun Improved Assault Rifle Launcher Advanced EMP Blaster Impact Weapon Maul Slashing Weapon Axe Piercing Weapon Spear Special Melee Weapon Datajack Build | -11 -10 -9 -8 -8 -7 -7 ------- Run | Yrd Mat Mat Mat Sto Fac DSF Slots Evolved 6 | . . 2 2 . 2 . Power . | . . . . . . . Propulsion . | . . . . . . . Utility 4 | . . 2 . . 2 . Weapon 2 | . . . 2 . . . Parts Attached 81 | 5 3 18 6 39 2 8 Power 8 | 1 1 2 1 2 . 1 Engine 5 | 1 1 2 . 1 . . Core 3 | . . . 1 1 . 1 Reactor . | . . . . . . . Propulsion 13 | 2 . 5 1 5 . . Treads 2 | . . . . 2 . . Leg 4 | . . 3 . 1 . . Wheel 7 | 2 . 2 1 2 . . Hover . | . . . . . . . Flight . | . . . . . . . Utility 18 | . 2 3 . 10 2 1 Device 2 | . 1 . . 1 . . Storage 2 | . 1 . . 1 . . Processor 3 | . . . . 1 2 . Hackware 3 | . . 1 . 2 . . Protection 8 | . . 2 . 5 . 1 Artifact . | . . . . . . . Weapon 42 | 2 . 8 4 22 . 6 Energy Gun 10 | . . . . 10 . . Energy Cannon . | . . . . . . . Ballistic Gun 22 | 2 . 7 4 9 . . Ballistic Cannon . | . . . . . . . Launcher 1 | . . . . 1 . . Special Weapon . | . . . . . . . Impact Weapon 2 | . . . . 2 . . Slashing Weapon 2 | . . . . . . 2 Piercing Weapon 4 | . . . . . . 4 Special Melee Weapon 1 | . . 1 . . . . Unidentified Prototypes 9 | . . 1 . 8 . . Parts Lost 47 | . 1 10 1 24 . 11 Power 6 | . 1 1 . 3 . 1 Propulsion 10 | . . 3 1 4 . 2 Utility 12 | . . 1 . 5 . 6 Weapon 19 | . . 5 . 12 . 2 Highest Loss Streak 9 | . 1 5 1 7 . 9 To Critical Strikes 1 | . . . . 1 . . Average Slot Usage (%) 89 | . 94 88 97 86 92 86 Engine 4 | . 12 10 . 3 . . Core 1 | . . . 8 1 . 2 Treads 4 | . . . . 6 15 12 Wheel 10 | . 28 9 15 7 . . Device 4 | . 12 11 9 1 . . Storage 8 | . 12 11 9 8 7 6 Processor 3 | . . . . 3 23 22 Hackware 4 | . . 2 . 6 . . Protection 13 | . . 17 18 14 15 11 Energy Gun 2 | . . . . 3 . . Ballistic Gun 24 | . 28 20 36 23 23 9 Impact Weapon 3 | . . . . 4 7 3 Naked Turns . | . . . . . . . Heaviest Build 34 | 7 18 26 32 34 23 32 Greatest Support 44 | 26 26 26 20 44 44 44 Greatest Overweight (x) 7 | . . 7 3 7 . 6 Average Overweight (x) . | . . 1 1 1 . . Largest Inventory Capacity 10 | 5 10 10 10 10 5 5 Average Capacity 8 | 5 9 10 10 7 5 5 Most Carried 10 | 5 8 10 10 10 4 5 Average Carried 7 | 1 4 7 9 7 3 3 Final Capacity 10 | 5 10 10 10 5 5 5 Final Carried 10 | 1 8 10 10 5 3 4 Class Distribution -------------------- 40% | Tank 29% | Mutant 13% | Commander-Tank 6% | Scavenger-Tank 3% | Gunner 3% | Commander-Mutant 3% | Scavenger-Mutant Dominant Class ---------------- Mutant | -10/Materials Mutant | -9/Materials Tank | -8/Materials Tank | -8/Storage Gunner | -7/Factory Mutant | -7/DSF Resources | -11 -10 -9 -8 -8 -7 -7 ----------- Run | Yrd Mat Mat Mat Sto Fac DSF Matter Collected 2986 | 158 258 763 392 1311 . 104 Remotely . | . . . . . . . Salvage Created 3903 | . 302 853 561 1900 . 287 Parts 235 | . 28 60 38 97 . 12 Haulers Intercepted 8 | . 1 2 2 3 . . Recyclers Shooed 4 | . . 2 . 2 . . Parts Field Recycled . | . . . . . . . Retrieved Matter . | . . . . . . . Parts Self-Destructed . | . . . . . . . Prevented . | . . . . . . . Kills | -11 -10 -9 -8 -8 -7 -7 ------- Run | Yrd Mat Mat Mat Sto Fac DSF Combat Hostiles Destroyed 76 | . 9 20 8 34 . 5 Melee 4 | . . . . . . 4 Guns 67 | . 9 20 8 30 . . AOE 4 | . . . . 4 . . Classes Destroyed 13 | . 5 4 1 2 . 1 Builder 6 | . . 2 . 4 . . Hauler 8 | . 1 2 2 3 . . Recycler 3 | . . 1 . 2 . . Operator 4 | . 1 . 2 1 . . Watcher 4 | . 2 1 . 1 . . Swarmer 21 | . 6 8 . 7 . . Grunt 27 | . 3 9 2 13 . . Brawler 2 | . . . . 2 . . Duelist 2 | . . 1 . . . 1 Sentry 18 | . . 2 5 11 . . Demolisher 1 | . . . . 1 . . Specialist 4 | . . . . . . 4 Hunter 2 | . . . 1 1 . . Best Kill Streak 9 | . 9 7 7 9 . 2 Combat Bots Only 8 | . 8 6 4 5 . 2 Max Kills in Single Turn 4 | . 1 2 1 4 . 1 Gunslinging 1 | . . 1 . . . . Exploded 2 | . . . . 2 . . Melee 1 | . . . . . . 1 Uniques/NPCs Destroyed . | . . . . . . . Combat | -11 -10 -9 -8 -8 -7 -7 -------- Run | Yrd Mat Mat Mat Sto Fac DSF Hostile Shots Fired 476 | . 52 95 31 168 . 130 Missed 131 | . 10 27 10 44 . 40 Damage Taken 5967 | . 371 820 321 2774 . 1681 Core 1350 | . 60 232 12 307 . 739 Absorbed by Shields . | . . . . . . . Redirected to Shielding 83 | . . 42 18 23 . . Core Remaining (%) 65 | 100 76 42 . 42 . . Volleys Fired 234 | . 33 69 26 106 . . Largest 4 | . 2 2 4 4 . . Hottest 165 | . 40 46 92 165 . . Shots Fired 615 | . 66 124 104 321 . . Gun 615 | . 66 124 104 321 . . Cannon . | . . . . . . . Launcher . | . . . . . . . Special . | . . . . . . . Kinetic 565 | . 66 124 104 271 . . Thermal 5 | . . . . 5 . . Explosive . | . . . . . . . Electromagnetic 45 | . . . . 45 . . Robot Hit Streak 21 | . 6 21 11 14 . . Robot Miss Streak 8 | . 5 3 8 4 . . Penetration Max . | . . . . . . . Secondary Targets 13 | . 2 3 . 8 . . Max Gunslinging Chain 1 | . 1 1 . 1 . . Shots Hit Robots 400 | . 39 80 66 194 . 21 Core Hits 170 | . 18 36 24 87 . 5 Critical Kills . | . . . . . . . Critical Parts Destroyed 3 | . . . 1 1 . 1 Critical Strikes 9 | . . . 1 3 . 5 Destroy 2 | . . . 1 1 . . Corrupt 2 | . . . . 2 . . Smash 1 | . . . . . . 1 Sever 1 | . . . . . . 1 Impale 3 | . . . . . . 3 Melee Attacks 62 | . . 1 . 31 . 30 Impact 34 | . . . . 31 . 3 Slashing 19 | . . . . . . 19 Piercing 8 | . . . . . . 8 Sneak Attacks 2 | . . . . . . 2 Combat Hostiles 2 | . . . . . . 2 Follow-up Attacks 8 | . . . . . . 8 Damage Inflicted 7109 | . 492 1233 940 3713 . 731 Guns 5787 | . 492 1233 940 3122 . . Cannons . | . . . . . . . Explosions 591 | . . . . 591 . . Melee 731 | . . . . . . 731 Ramming . | . . . . . . . Kinetic 5400 | . 492 1233 940 2735 . . Thermal 591 | . . . . 591 . . Explosive . | . . . . . . . Electromagnetic 387 | . . . . 387 . . Impact 127 | . . . . . . 127 Slashing 311 | . . . . . . 311 Piercing 293 | . . . . . . 293 Highest Corruption 18 | . . . . 18 . . Average Corruption 11 | . . . . 11 . . Corruption Purged . | . . . . . . . Corruption Blocked . | . . . . . . . Effects 57 | . . . . 57 . . Message Errors 5 | . . . . 5 . . Matter Fused 16 | . . . . 16 . . Heat Flow Errors 7 | . . . . 7 . . Energy Discharges 7 | . . . . 7 . . Parts Fused 2 | . . . . 2 . . Data Loss (minor) 6 | . . . . 6 . . Data Loss (major) 6 | . . . . 6 . . Misfires 5 | . . . . 5 . . Weapon Failures 3 | . . . . 3 . . Overload Shots . | . . . . . . . Overflow Damage 191 | . . . . 20 . 171 Projectiles . | . . . . . . . Explosions 20 | . . . . 20 . . Melee 171 | . . . . . . 171 Knockbacks . | . . . . . . . Impact . | . . . . . . . Kinetic . | . . . . . . . Secondary . | . . . . . . . Self-Inflicted Damage 171 | . . . . 171 . . Shots 3 | . . . . 3 . . Rammed . | . . . . . . . Targets Rammed . | . . . . . . . Kicked . | . . . . . . . Crushed . | . . . . . . . Highest Temperature 420 | . 12 12 66 420 . . Average Temperature 79 | . 6 7 27 97 . . Received Heat Transfer 1350 | . 48 222 81 684 . 315 Effects 5 | . . . . 5 . . Shutdowns 2 | . . . . 2 . . Damage (major) 3 | . . . . 3 . . Siege Activations . | . . . . . . . Robots Corrupted . | . . . . . . . Combat Hostiles . | . . . . . . . Parts Fried . | . . . . . . . Impact Corruptions 2 | . . . . . . 2 Robots Melted . | . . . . . . . Combat Hostiles . | . . . . . . . Parts Melted 1 | . . . . 1 . . Heat Transferred 550 | . . . . 550 . . Parts Sabotaged . | . . . . . . . Parts Stolen . | . . . . . . . Parts Stripped . | . . . . . . . Power Chain Reactions 3 | . . . . 3 . . Alert | -11 -10 -9 -8 -8 -7 -7 ------- Run | Yrd Mat Mat Mat Sto Fac DSF Peak Influence 880 | . 342 584 481 880 279 275 Initial 279 | . . 144 190 137 279 195 Average 494 | . 169 383 351 644 279 221 Maximum Alert Level 3 | . 1 2 2 3 1 1 Low Security (%) 9 | 100 53 5 11 . . 28 Level 1 26 | . 46 48 46 8 100 71 Level 2 47 | . . 45 41 62 . . Level 3 16 | . . . . 29 . . Level 4 . | . . . . . . . Level 5 . | . . . . . . . High Security . | . . . . . . . Max Security . | . . . . . . . Squads Dispatched 13 | . 2 1 3 6 . 1 Investigation 2 | . . . . 2 . . Extermination . | . . . . . . . Reinforcement 7 | . 2 1 2 1 . 1 Assault 2 | . . . . 2 . . Garrison 2 | . . . 1 1 . . Intercept . | . . . . . . . Searches Triggered . | . . . . . . . Construction Impeded . | . . . . . . . Haulers Reinforced . | . . . . . . . Active Scanning Responses . | . . . . . . . Cargo Convoy Interrupts . | . . . . . . . Stealth | -11 -10 -9 -8 -8 -7 -7 --------- Run | Yrd Mat Mat Mat Sto Fac DSF Distress Signals 6 | . . 2 . 4 . . Communications Jammed . | . . . . . . . Distress Signals . | . . . . . . . Times Spotted 122 | . 16 32 11 52 . 11 Peak Tracking Total 7 | . 6 7 3 6 . 6 Tactical Retreats 6 | . 2 1 . 1 . 2 Traps | -11 -10 -9 -8 -8 -7 -7 ------- Run | Yrd Mat Mat Mat Sto Fac DSF Traps Triggered . | . . . . . . . Indirectly . | . . . . . . . Trap Hack Attempts . | . . . . . . . Triggered . | . . . . . . . Disarmed . | . . . . . . . Reprogrammed . | . . . . . . . Reused . | . . . . . . . Traps Extracted . | . . . . . . . Installed . | . . . . . . . Triggered . | . . . . . . . Machines | -11 -10 -9 -8 -8 -7 -7 ---------- Run | Yrd Mat Mat Mat Sto Fac DSF Machines Disabled 7 | . . . 1 6 . . Max in Single Turn 2 | . . . 1 2 . . Garrison Access 1 | . . . . 1 . . Machines Repaired . | . . . . . . . Machines Dismantled . | . . . . . . . Machines Sabotaged . | . . . . . . . Overloaded Fab Kills . | . . . . . . . Hacking | -11 -10 -9 -8 -8 -7 -7 --------- Run | Yrd Mat Mat Mat Sto Fac DSF Machines Accessed 18 | . 1 2 . 14 1 . Terminals 17 | . 1 2 . 13 1 . Fabricators . | . . . . . . . Repair Stations . | . . . . . . . Recycling Units . | . . . . . . . Scanalyzers . | . . . . . . . Garrison Access 1 | . . . . 1 . . Total Hacks 44 | . 1 6 . 36 1 . Successful 26 | . 1 4 . 20 1 . Failed 18 | . . 2 . 16 . . Catastrophic 2 | . . . . 2 . . Database Lockouts . | . . . . . . . Manual 1 | . . . . 1 . . Terminals 42 | . 1 6 . 34 1 . Fabricators . | . . . . . . . Repair Stations . | . . . . . . . Recycling Units . | . . . . . . . Scanalyzers . | . . . . . . . Garrison Access 2 | . . . . 2 . . Terminal Hacks 25 | . 1 4 . 19 1 . Record 2 | . 1 . . 1 . . Part Schematic 6 | . . . . 6 . . Robot Analysis 2 | . . . . 2 . . Prototype ID Bank 3 | . . 1 . 2 . . Open Door 6 | . . . . 6 . . Open DSF 1 | . . . . . 1 . Alert Level 1 | . . 1 . . . . Dispatch Records 1 | . . . . 1 . . Maintenance Status 1 | . . . . 1 . . Reinforcement Status 1 | . . 1 . . . . Registered Components 1 | . . 1 . . . . Fabricator Hacks . | . . . . . . . Repair Station Hacks . | . . . . . . . Recycling Unit Hacks . | . . . . . . . Scanalyzer . | . . . . . . . Garrison Access Hacks 1 | . . . . 1 . . Seal Access 1 | . . . . 1 . . Unauthorized Hacks . | . . . . . . . Terminals . | . . . . . . . Fabricators . | . . . . . . . Repair Stations . | . . . . . . . Recycling Units . | . . . . . . . Scanalyzers . | . . . . . . . Garrison Access . | . . . . . . . Data Cores Recovered 2 | . . . 1 1 . . Used . | . . . . . . . Hacking Detections 11 | . . . . 10 1 . Full Trace Events 3 | . . . . 3 . . Feedback Events . | . . . . . . . Feedback Blocked . | . . . . . . . Robot Schematics Acquired . | . . . . . . . Robots Built . | . . . . . . . Authchips . | . . . . . . . Time . | . . . . . . . Total Robot Build Rating . | . . . . . . . Part Schematics Acquired 6 | . . . . 6 . . Parts Built . | . . . . . . . Authchips . | . . . . . . . Time . | . . . . . . . Total Part Build Rating . | . . . . . . . Parts Repaired . | . . . . . . . Time . | . . . . . . . Parts Recycled . | . . . . . . . Recycled Matter . | . . . . . . . Retrieved Matter . | . . . . . . . Retrieved Components . | . . . . . . . Parts Scanalyzed . | . . . . . . . Part Schematics Acquired . | . . . . . . . Parts Damaged . | . . . . . . . Bothacking | -11 -10 -9 -8 -8 -7 -7 ------------ Run | Yrd Mat Mat Mat Sto Fac DSF Used RIF Installer . | . . . . . . . Robots Hacked . | . . . . . . . Non-combat . | . . . . . . . Combat . | . . . . . . . Robot Hacks Applied . | . . . . . . . Relay Couplers Released . | . . . . . . . Fabnet Peak Effective % . | . . . . . . . Robots Rewired . | . . . . . . . Allies Hacked . | . . . . . . . Hacks Repelled . | . . . . . . . Allies | -11 -10 -9 -8 -8 -7 -7 -------- Run | Yrd Mat Mat Mat Sto Fac DSF Total Allies 10 | . . . . 10 . . Largest Group 10 | . . . . 10 . . Highest-Rated Group 173 | . . . . 173 . . Highest-Rated Ally 29 | . . . . 29 . . Total Orders . | . . . . . . . Ally Attacks 55 | . . . . 55 . . Total Damage 696 | . . . . 696 . . Kills 5 | . . . . 5 . . Allies Corrupted . | . . . . . . . Allies Melted . | . . . . . . . Intel | -11 -10 -9 -8 -8 -7 -7 ------- Run | Yrd Mat Mat Mat Sto Fac DSF Robot Analysis Total 2 | . . . . 2 . . Derelict Logs Recovered . | . . . . . . . Drone Launches . | . . . . . . . Drone Recoveries . | . . . . . . . Exploration | -11 -10 -9 -8 -8 -7 -7 ------------- Run | Yrd Mat Mat Mat Sto Fac DSF Turns Passed 3840 | 37 280 588 510 2148 26 251 Spaces Moved 2255 | 33 181 283 388 1243 17 110 Core 32 | 9 . 9 . 8 . 6 Treads 584 | . . . . 463 17 104 Legs 78 | . . 61 . 17 . . Wheels 1561 | 24 181 213 388 755 . . Hover . | . . . . . . . Flight . | . . . . . . . Fastest Speed 50 | 50 90 90 95 90 145 145 Average Speed 119 | 79 90 127 102 125 145 149 Slowest Speed 400 | 90 90 400 125 400 145 350 Overloaded Moves . | . . . . . . . Propulsion Burnouts . | . . . . . . . Robots Hopped . | . . . . . . . Cave-ins Triggered 2 | . . . . 2 . . Exploration Rate (%) 36 | 4 35 31 38 87 1 58 Regions Visited 6 Branch Regions 1 Pre-discovered Areas . | . . . . . . . Known Exits Taken 1 | . . . . . 1 . Unknown Exits Taken 5 | 1 1 1 1 1 . . Scrap Searched . | . . . . . . . Spaces Dug 5 | . . . . 5 . . Terrain Destroyed 18 | . . . . 18 . . Melee 5 | . . . . 5 . . Projectile 2 | . . . . 2 . . AOE 11 | . . . . 11 . . Terrain Rammed . | . . . . . . . Walls Destroyed . | . . . . . . . Machines Disabled . | . . . . . . . Actions | -11 -10 -9 -8 -8 -7 -7 --------- Run | Yrd Mat Mat Mat Sto Fac DSF Total 2842 | 43 231 399 437 1560 18 154 Wait 102 | . 5 5 3 86 . 3 Move 2249 | 32 180 282 387 1242 16 110 Hop . | . . . . . . . Pick Up 91 | 6 10 19 9 39 . 8 Fast Attach . | . . . . . . . Attach 56 | 5 3 12 3 27 2 4 Detach . | . . . . . . . Swap 25 | . . 6 3 12 . 4 Drop 32 | . . 5 6 17 . 4 Fire 234 | . 33 69 26 106 . . Melee 53 | . . 1 . 31 . 21 Ram . | . . . . . . . Kick . | . . . . . . . Crush . | . . . . . . . Escape Stasis . | . . . . . . . Rewire . | . . . . . . . Trap . | . . . . . . . Miscellaneous . | . . . . . . . Route ------- -11/Scrapyard -10/Materials -9/Materials (discovered 2 exits: [*Mat] / [*Min]) -8/Materials -8/Storage -7/Factory -7/DSF History --------- Turn | Location | Event 9 | -11/Scrapyard | Discovered new exit (range 16) 38 | -11/Scrapyard | Entered Materials 241 | -10/Materials | Destroyed 8 combat bots 291 | -10/Materials | Discovered new exit (range 16) 303 | -10/Materials | Build established: Mutant 318 | -10/Materials | Entered another Materials area 318 | -9/Materials | Evolved 2 slots: Utility x2 542 | -9/Materials | Lost 5 parts (1p4w) 548 | -9/Materials | Discovered new exit (range 15) 702 | -9/Materials | Core integrity fell below 50% 891 | -9/Materials | Discovered new exit (range 16) 906 | -9/Materials | Entered another Materials area 906 | -8/Materials | Evolved 2 slots: Weapon x2 1063 | -8/Materials | Garrison activated, responded to threat 1200 | -8/Materials | Build established: Tank 1403 | -8/Materials | Discovered new exit (range 7) 1416 | -8/Materials | Entered Storage 1472 | -8/Storage | Garrison activated, responded to threat 1816 | -8/Storage | First assault squad dispatched 1854 | -8/Storage | Lost 3 parts (1n2w) 1926 | -8/Storage | Lost 3 parts (1u2w) 2019 | -8/Storage | Assisted by bots powering up and referring to "LRC-V3" 2153 | -8/Storage | Lost 3 parts (1n2w) 2451 | -8/Storage | Build established: Commander-Tank 2663 | -8/Storage | Core integrity fell below 50% 2673 | -8/Storage | Crushed by falling debris 2673 | -8/Storage | System corruption reached 10% 2692 | -8/Storage | Crushed by falling debris 2695 | -8/Storage | Lost 8 allies 2723 | -8/Storage | Lost 7 parts (2p1n3u1w) 2960 | -8/Storage | Build established: Tank 3267 | -8/Storage | Discovered new exit (range 13) 3564 | -8/Storage | Entered Factory 3564 | -7/Factory | Evolved 2 slots: Utility x2 3590 | -7/Factory | Identified exit to DSF 3590 | -7/Factory | Entered DSF 3693 | -7/DSF | Additional patrols routed to DSF 3819 | -7/DSF | Core integrity fell below 50% 3831 | -7/DSF | Core integrity fell below 20% 3841 | -7/DSF | Destroyed by H-61 Shepherd with Heavy Assault Cannon Last Messages --------------- 03812_ Knocked back. 03814_ Slug penetrates X-57 Shotgunner. 03814_ X-57 Shotgunner knocked back. 03815_ Nuclear Core destroyed. 03821_ L-41 Fighter destroyed. 03826_ Critical hit (Burn: +37). 03827_ Hcp. Matter Pod destroyed. 03829_ Target Analyzer destroyed. 03829_ Critical hit (Blast). 03829_ Knocked back. 03834_ Spear follow-up attack on X-57 Shotgunner. 03834_ X-57 Shotgunner suffers critical hit (Impale). 03834_ X-57 Shotgunner destroyed. 03836_ Target Analyzer destroyed. 03836_ Knocked back. 03836_ Critical hit (Burn: +37). 03838_ Spear destroyed. 03839_ Spear follow-up attack on G-47 Trooper. Map ----- +----------------------------------------------------+ | | | | | | | | | | | | | | | | | | | | | | | | | | | | | | | | | | | ???????????????????????????????????????? | | ???????????????????????????????????????? | | ???????????????????????????????????????? | | ???????????????????????????????????????? | | ?????????""????????????????????????????? | | ?????????#"#???????????###?????????????? | | ??????####"##???????####"####??????????? | | ??????#"""""#########!! ]]#??????????? | | ??????#"""""## @%g #!! ]]#??????????? | | ????"##"" [[!* % #??????????? | | ????""""" =! %%!%g% % =*%#??????????? | | ?????##"" %##//!g//### !###??????????? | | ??????### =###//;H//;## #????????????? | | ???????## #########; !!???????????? | | ???????# #??????# !!#??????????? | | ???????# #??????# !!#??????????? | | ???????## ###??????### ###??????????? | | ???????# #????????! !!???????????? | | ???????# #???????!!% !!#??????????? | | ???????# #???????!!" !!#??????????? | | ??????### ######???### ###??????????? | | ??????# % #? #?!!#?# #????????????? | | ??????# ## #!!!## ????????????? | | ??????#== ????????????? | | ??????#== ????????????? | | ??????#== ????????????? | | ??????# ##!!!#***## ?????????????? | | ??????# #?!!!#?**#??????????????????? | | ??????### ######???#??????????????????? | | ???????#= #?????????????????????????? | | ???????#= #?????????????????????????? | | ???????#= #?????????????????????????? | | ???????## ###?????????????????????????? | +----------------------------------------------------+ Best States ------------- Heat Dissipation 34 Energy Generation 14 Energy Capacity 265 Matter Stores 500 Matter Capacity 500 Sight Range 16 Terrain Scan Density 10 Armor Coverage 375 Core Shielding 20 Propulsion Shielding 33 Evasion (%) 50 Target Analysis 7 Recoil Reduction 2 Offensive Hacking 20 Item Schematics ----------------- Shock Rifle | -8/Storage | Hacked Lightning Gun | -8/Storage | Hacked Arm. Huge Wheel | -8/Storage | Hacked Flexi-carbon Leg | -8/Storage | Hacked Com. Battery | -8/Storage | Hacked Plasma Cannon | -8/Storage | Hacked Robot Schematics ------------------ None Fabricated ------------ Nothing Alien Tech Used ----------------- None Achievements -------------- None Challenges ------------ None Game ------ Seed AlphaCargoRecalibrator Manual? 0 Play Time 00:43:26 Cumulative 23.7 hours Start 2024.04.07 @ 09:00:51 End 2024.04.07 @ 09:43:35 Sessions 1 Manual Loads 0 Difficulty Rogue Special Mode None Game No. 46 Rogue 46 Adventurer 0 Explorer 0 Win Type - Total 0 Types 0/0/0/0/0/0/0/0/0 Lore% 14 Gallery% 30 Achievement% 21 Wizard Run 0 Options --------- Layout 1 ASCII 0 Keyboard 0 Movement Mouse Keybinds 0 Fullscreen 1 Font 24/Smallcaps Map View 50x35 Zoom Use 0% Tactical HUD 1 Map Filters NONE Filters NONE Steam 1 RUN: e8f0a278-0583-4a81-bfc6-0a572aae182e